fUST/lending_fUST_20251119
["ID","MTS","AMOUNT","RATE_DAILY","PERIOD"]
[394397729,1763531433842,-500.0,0.00015816,2]
[394397730,1763531433851,-151.0,0.00015816,2]
[394397731,1763531433860,-151.0,0.00015816,2]
[394397732,1763531433869,-500.0,0.00015816,2]
[394397733,1763531433879,-523.0,0.00015831,2]
[394397734,1763531433889,-165.04320545,0.00015832,2]
[394397735,1763531433899,-151.0,0.00015832,2]
[394397736,1763531433909,-500.0,0.00015832,2]
[394397737,1763531433918,-500.0,0.00015832,2]
[394397738,1763531433927,-151.0,0.00015832,2]
[394397739,1763531433936,-1414.0,0.00015838,2]
[394397740,1763531433946,-583.0,0.00015838,2]
[394397741,1763531433957,-500.0,0.00015843,2]
[394397742,1763531433967,-151.0,0.00015843,2]
[394397743,1763531433977,-277.21465388,0.00015843,2]
[394397744,1763531433987,-500.0,0.00015843,2]
[394397745,1763531433996,-523.0,0.00015859,2]
[394397746,1763531434005,-151.0,0.00015859,2]
[394397747,1763531434014,-500.0,0.00015859,2]
[394397748,1763531434023,-500.0,0.00015859,2]
[394397749,1763531434032,-159.24956226,0.00015859,2]
[394397750,1763531434041,-1414.0,0.00015865,2]
[394397751,1763531434050,-583.0,0.00015865,2]
[394397752,1763531434061,-405.3822629,0.00015871,2]
[394397753,1763531434070,-500.0,0.00015871,2]
[394397754,1763531434079,-497.43,0.00015873,2]
[394397755,1763531434088,-523.0,0.00015886,2]
[394397756,1763531434097,-279.23716234,0.00015887,2]
[394397757,1763531434106,-500.0,0.00015887,2]
[394397758,1763531434115,-500.0,0.00015887,2]
[394397759,1763531434124,-1414.0,0.00015892,2]
[394397760,1763531434133,-583.0,0.00015892,2]
[394397761,1763531434142,-500.0,0.00015898,2]
[394397762,1763531434151,-239.93328931,0.00015902,2]
[394397763,1763531434160,-1736.19388497,0.00015908,2]
[394397764,1763531434169,-523.0,0.00015914,2]
[394397765,1763531434179,-500.0,0.00015914,2]
[394397766,1763531434188,-500.0,0.00015914,2]
[394397767,1763531434200,-1414.0,0.0001592,2]
[394397768,1763531434209,-583.0,0.0001592,2]
[394397769,1763531434219,-922.87952356,0.00015921,2]
[394397770,1763531434228,-500.0,0.00015926,2]
[394397771,1763531434237,-523.0,0.00015941,2]
[394397772,1763531434246,-441.68803233,0.00015941,2]
[394397773,1763531434258,-58.31196767,0.00015941,2]
[394397774,1763531434267,-500.0,0.00015941,2]
[394397775,1763531434277,-1414.0,0.00015947,2]
[394397776,1763531434285,-583.0,0.00015947,2]
[394397777,1763531434295,-500.0,0.00015953,2]
[394397778,1763531434304,-407.5828655,0.00015968,2]
[394397779,1763531434313,-395.7021138,0.00015968,2]
[394397780,1763531434323,-395.7021138,0.00015968,2]
[394397781,1763531434332,-523.0,0.00015968,2]
[394397782,1763531434342,-500.0,0.00015969,2]
[394397783,1763531434352,-500.0,0.00015969,2]
[394397784,1763531434361,-500.0,0.00015973,2]
[394397785,1763531434370,-500.44641034,0.00015973,2]
[394397786,1763531434379,-397.51357474,0.00015973,2]
[394397787,1763531434388,-412.65030203,0.00015973,2]
[394397788,1763531434398,-221.18237275,0.00015973,2]
[394397789,1763531434407,-500.0,0.00015973,2]
[394397790,1763531434416,-500.0,0.00015973,2]
[394397791,1763531434425,-500.0,0.00015973,2]
[394397792,1763531434435,-500.0,0.00015973,2]
[394397793,1763531434443,-500.0,0.00015973,2]
[394397794,1763531434455,-500.0,0.00015973,2]
[394397795,1763531434465,-500.0,0.00015973,2]
[394397796,1763531434474,-507.53235926,0.00015973,2]
[394397797,1763531434484,-383.81972393,0.00015973,2]
[394397798,1763531434494,-500.0,0.00015973,2]
[394397799,1763531434503,-500.0,0.00015973,2]
[394397800,1763531434513,-500.0,0.00015973,2]
[394397801,1763531434522,-500.0,0.00015973,2]
[394397802,1763531434532,-601.97704842,0.00015973,2]
[394397803,1763531434542,-500.0,0.00015973,2]
[394397804,1763531434551,-500.0,0.00015973,2]
[394397805,1763531434561,-500.0,0.00015973,2]
[394397806,1763531434571,-500.0,0.00015973,2]
[394397807,1763531434580,-251.44066914,0.00015973,2]
[394397808,1763531434589,-500.0,0.00015973,2]
[394397809,1763531434598,-500.0,0.00015973,2]
[394397810,1763531434607,-500.0,0.00015973,2]
[394397811,1763531434617,-505.7381347,0.00015973,2]
[394397812,1763531434627,-594.69448026,0.00015973,2]
[394397813,1763531434637,-1414.0,0.00015975,2]
[394397814,1763531434646,-583.0,0.00015975,2]
[394397815,1763531434655,-500.0,0.0001598,2]
[394397816,1763531434664,-161.35712908,0.00015989,2]
[394397817,1763531434674,-201.35545475,0.00015989,2]
[394397818,1763531434684,-80103.93143895,0.0001599,2]
[394397819,1763531434695,-648.31645262,0.0001599,2]
[394397820,1763531434709,-494.19619852,0.0001599,2]
[394397821,1763531434734,-504.75675214,0.0001599,2]
[394397852,1763531438383,-156.98824744,0.00015804,2]
[394397854,1763531438393,-500.0,0.00015804,2]
[394397856,1763531438403,-1387.98256802,0.00015807,2]
[394397904,1763531439050,-6344.43112095,0.00015807,2]
[394397905,1763531439061,-500.0,0.00015831,2]
[394397906,1763531439070,-500.0,0.00015859,2]
[394397907,1763531439080,-8018.51299546,0.00015862,2]
[394397908,1763531439090,-500.0,0.00015886,2]
[394397909,1763531439100,-500.0,0.00015914,2]
[394397910,1763531439110,-8315.19797629,0.00015917,2]
[394397911,1763531439120,-500.0,0.00015941,2]
[394397912,1763531439130,-500.0,0.00015968,2]
[394397913,1763531439139,-8622.86030142,0.00015972,2]
[394397915,1763531439150,-18248.79915777,0.0001599,2]
[394397917,1763531439160,-151.000082,0.0001599,2]
[394397919,1763531439170,-152.662201,0.0001599,2]
[394397921,1763531439182,-152.662201,0.0001599,2]
[394397923,1763531439194,-152.662201,0.0001599,2]
[394397925,1763531439207,-152.662201,0.0001599,2]
[394397927,1763531439220,-435.219433,0.0001599,2]
[394397929,1763531439231,-435.219433,0.0001599,2]
[394397931,1763531439241,-435.219433,0.0001599,2]
[394397933,1763531439251,-435.219433,0.0001599,2]
[394397935,1763531439261,-151.0,0.0001599,2]
[394397937,1763531439270,-247.822148,0.0001599,2]
[394397939,1763531439280,-247.822148,0.0001599,2]
[394397941,1763531439289,-247.822148,0.0001599,2]
[394397943,1763531439299,-247.822148,0.0001599,2]
[394397945,1763531439308,-523.0,0.00015996,2]
[394397947,1763531439318,-500.0,0.00015996,2]
[394397949,1763531439328,-500.0,0.00015996,2]
[394397951,1763531439338,-500.0,0.00015996,2]
[394397953,1763531439348,-214.56473727,0.00016,2]
[394397955,1763531439357,-395.7021138,0.00016,2]
[394397957,1763531439367,-500.0,0.00016008,2]
[394397959,1763531439376,-1000.0,0.00016021,2]
[394397961,1763531439385,-1000.0,0.00016021,2]
[394397963,1763531439394,-1000.0,0.00016021,2]
[394397965,1763531439404,-263.88541376,0.00016021,2]
[394397967,1763531439412,-523.0,0.00016023,2]
[394397969,1763531439421,-500.0,0.00016023,2]
[394397970,1763531439432,-500.0,0.00016024,2]
[394397972,1763531439441,-173.03643772,0.00016024,2]
[394397974,1763531439451,-8941.90613257,0.00016027,2]
[394397976,1763531439464,-254.08719922,0.00016035,2]
[394397979,1763531439474,-523.0,0.00016051,2]
[394397981,1763531439483,-500.0,0.00016051,2]
[394397982,1763531439492,-500.0,0.00016051,2]
[394397984,1763531439502,-523.0,0.00016078,2]
[394397986,1763531439512,-500.0,0.00016078,2]
[394397989,1763531439521,-8874.81080422,0.00016082,2]
[394397991,1763531439530,-500.0,0.00016083,2]
[394397992,1763531439540,-523.0,0.00016105,2]
[394397994,1763531439549,-500.0,0.00016106,2]
[394397996,1763531439558,-523.0,0.00016133,2]
[394397998,1763531439568,-500.0,0.00016133,2]
[394398000,1763531439577,-523.0,0.0001616,2]
[394398002,1763531439586,-500.0,0.00016161,2]
[394398004,1763531439595,-523.0,0.00016188,2]
[394398006,1763531439604,-500.0,0.00016188,2]
[394398008,1763531439613,-395.7021138,0.000162,2]
[394398010,1763531439622,-252.0,0.0001621,2]
[394398012,1763531439631,-523.0,0.00016215,2]
[394398014,1763531439640,-500.0,0.00016215,2]
[394398016,1763531439650,-252.0,0.00016228,2]
[394398018,1763531439660,-252.0,0.00016233,2]
[394398020,1763531439669,-523.0,0.00016242,2]
[394398022,1763531439678,-252.0,0.00016243,2]
[394398024,1763531439687,-500.0,0.00016243,2]
[394398026,1763531439696,-252.0,0.00016245,2]
[394398028,1763531439707,-418.92516375,0.0001627,2]
[394398030,1763531439720,-104.07483625,0.0001627,2]
[394398032,1763531439729,-500.0,0.0001627,2]
[394398034,1763531439739,-252.0,0.00016279,2]
[394398036,1763531439748,-300.0,0.00016291,2]
[394398038,1763531439758,-300.0,0.00016291,2]
[394398040,1763531439767,-300.0,0.00016291,2]
[394398042,1763531439776,-300.0,0.00016291,2]
[394398044,1763531439785,-300.0,0.00016291,2]
[394398046,1763531439794,-300.0,0.00016291,2]
[394398048,1763531439804,-300.0,0.00016291,2]
[394398050,1763531439816,-300.0,0.00016291,2]
[394398052,1763531439825,-300.0,0.00016291,2]
[394398054,1763531439834,-300.0,0.00016291,2]
[394398056,1763531439843,-300.0,0.00016291,2]
[394398058,1763531439853,-300.0,0.00016291,2]
[394398060,1763531439862,-300.0,0.00016291,2]
[394398062,1763531439871,-300.0,0.00016291,2]
[394398064,1763531439882,-300.0,0.00016291,2]
[394398066,1763531439892,-252.0,0.00016293,2]
[394398068,1763531439900,-523.0,0.00016297,2]
[394398070,1763531439911,-166.16225842,0.00016298,2]
[394398072,1763531439920,-500.0,0.000163,2]
[394398074,1763531439929,-217.15233878,0.00016316,2]
[394398076,1763531439938,-523.0,0.00016325,2]
[394398078,1763531439947,-252.0,0.00016347,2]
[394398080,1763531439958,-523.0,0.00016352,2]
[394398082,1763531439967,-500.0,0.00016357,2]
[394398084,1763531439975,-252.0,0.00016358,2]
[394398086,1763531439988,-252.0,0.00016366,2]
[394398088,1763531440003,-252.0,0.00016367,2]
[394398090,1763531440012,-10000.0,0.00016373,2]
[394398092,1763531440021,-523.0,0.00016379,2]
[394398094,1763531440031,-523.0,0.00016407,2]
[394398095,1763531440040,-542.38587116,0.00016434,2]
[394398097,1763531440050,-252.0,0.00016438,2]
[394398099,1763531440059,-152.662201,0.00016438,2]
[394398101,1763531440070,-152.662201,0.00016438,2]
[394398104,1763531440079,-152.662201,0.00016438,2]
[394398107,1763531440088,-152.662201,0.00016438,2]
[394398108,1763531440098,-435.219433,0.00016438,2]
[394398110,1763531440107,-435.219433,0.00016438,2]
[394398112,1763531440116,-435.219433,0.00016438,2]
[394398114,1763531440125,-435.219433,0.00016438,2]
[394398116,1763531440134,-435.219433,0.00016438,2]
[394398118,1763531440143,-435.219433,0.00016438,2]
[394398120,1763531440152,-435.219433,0.00016438,2]
[394398122,1763531440161,-435.219433,0.00016438,2]
[394398124,1763531440171,-151.0,0.00016438,2]
[394398126,1763531440179,-169.231231,0.00016438,2]
[394398128,1763531440189,-247.822148,0.00016438,2]
[394398130,1763531440198,-247.822148,0.00016438,2]
[394398132,1763531440208,-247.822148,0.00016438,2]
[394398134,1763531440217,-247.822148,0.00016438,2]
[394398136,1763531440227,-247.822148,0.00016438,2]
[394398138,1763531440236,-247.822148,0.00016438,2]
[394398140,1763531440245,-247.822148,0.00016438,2]
[394398142,1763531440254,-247.822148,0.00016438,2]
[394398144,1763531440264,-500.0,0.00016438,2]
[394398145,1763531440273,-500.0,0.00016438,2]
[394398147,1763531440282,-500.0,0.00016438,2]
[394398149,1763531440292,-500.0,0.00016438,2]
[394398151,1763531440301,-500.0,0.00016438,2]
[394398153,1763531440310,-500.0,0.00016438,2]
[394398155,1763531440319,-500.0,0.00016438,2]
[394398157,1763531440328,-500.0,0.00016438,2]
[394398159,1763531440337,-500.0,0.00016438,2]
[394398161,1763531440348,-500.0,0.00016438,2]
[394398163,1763531440357,-500.0,0.00016438,2]
[394398165,1763531440367,-1251.52112131,0.00016438,2]
[394398167,1763531440376,-500.0,0.00016438,2]
[394398169,1763531440384,-1251.52112131,0.00016438,2]
[394398171,1763531440394,-500.0,0.00016438,2]
[394398173,1763531440403,-1251.52112131,0.00016438,2]
[394398175,1763531440411,-500.0,0.00016438,2]
[394398177,1763531440420,-1251.52112131,0.00016438,2]
[394398179,1763531440429,-500.0,0.00016438,2]
[394398181,1763531440438,-500.0,0.00016438,2]
[394398183,1763531440447,-1251.52112131,0.00016438,2]
[394398185,1763531440457,-500.0,0.00016438,2]
[394398187,1763531440467,-1251.52112131,0.00016438,2]
[394398189,1763531440476,-500.0,0.00016438,2]
[394398191,1763531440485,-1251.52112131,0.00016438,2]
[394398193,1763531440494,-500.0,0.00016438,2]
[394398195,1763531440503,-1251.52112131,0.00016438,2]
[394398197,1763531440512,-500.0,0.00016438,2]
[394398199,1763531440521,-1251.52112131,0.00016438,2]
[394398201,1763531440529,-500.0,0.00016438,2]
[394398203,1763531440538,-1251.52112131,0.00016438,2]
[394398205,1763531440547,-500.0,0.00016438,2]
[394398206,1763531440556,-1251.52112131,0.00016438,2]
[394398209,1763531440565,-500.0,0.00016438,2]
[394398210,1763531440574,-1251.52112131,0.00016438,2]
[394398212,1763531440583,-500.0,0.00016438,2]
[394398214,1763531440592,-1251.52112131,0.00016438,2]
[394398216,1763531440601,-500.0,0.00016438,2]
[394398218,1763531440610,-1251.52112131,0.00016438,2]
[394398220,1763531440619,-500.0,0.00016438,2]
[394398222,1763531440628,-1251.52112131,0.00016438,2]
[394398226,1763531440747,-500.0,0.00016438,2]
[394398228,1763531440758,-500.0,0.00016438,2]
[394398230,1763531440767,-1251.52112131,0.00016438,2]
[394398232,1763531440776,-500.0,0.00016438,2]
[394398234,1763531440785,-500.0,0.00016438,2]
[394398236,1763531440794,-1251.52112131,0.00016438,2]
[394398237,1763531440804,-500.0,0.00016438,2]
[394398238,1763531440817,-1251.52112131,0.00016438,2]
[394398239,1763531440826,-500.0,0.00016438,2]
[394398240,1763531440835,-500.0,0.00016438,2]
[394398241,1763531440844,-1251.52112131,0.00016438,2]
[394398242,1763531440853,-500.0,0.00016438,2]
[394398243,1763531440862,-500.0,0.00016438,2]
[394398244,1763531440873,-1251.52112131,0.00016438,2]
[394398245,1763531440882,-500.0,0.00016438,2]
[394398246,1763531440891,-1251.52112131,0.00016438,2]
[394398247,1763531440900,-500.0,0.00016438,2]
[394398248,1763531440910,-1251.52112131,0.00016438,2]
[394398249,1763531440921,-500.0,0.00016438,2]
[394398250,1763531440930,-1251.52112131,0.00016438,2]
[394398251,1763531440939,-500.0,0.00016438,2]
[394398252,1763531440948,-1251.52112131,0.00016438,2]
[394398253,1763531440958,-1251.52112131,0.00016438,2]
[394398254,1763531440968,-500.0,0.00016438,2]
[394398255,1763531440977,-500.0,0.00016438,2]
[394398256,1763531440986,-500.0,0.00016438,2]
[394398257,1763531440995,-1251.52112131,0.00016438,2]
[394398258,1763531441004,-1251.52112131,0.00016438,2]
[394398260,1763531441014,-1251.52112131,0.00016438,2]
[394398262,1763531441023,-1251.52112131,0.00016438,2]
[394398264,1763531441032,-273.59584238,0.00016438,2]
[394398266,1763531441045,-815.57632283,0.00016438,2]
[394398340,1763531443584,-162.3489561,0.00016438,2]
[394398341,1763531443594,-1251.52112131,0.00016438,2]
[394398342,1763531443702,-1251.52112131,0.00016438,2]
[394398343,1763531443715,-1251.52112131,0.00016438,2]
[394398344,1763531443726,-1251.52112131,0.00016438,2]
[394398345,1763531443735,-1251.52112131,0.00016438,2]
[394398346,1763531443745,-1251.52112131,0.00016438,2]
[394398347,1763531443754,-1251.52112131,0.00016438,2]
[394398348,1763531443764,-1251.52112131,0.00016438,2]
[394398349,1763531443774,-1251.52112131,0.00016438,2]
[394398350,1763531443784,-1251.52112131,0.00016438,2]
[394398351,1763531443794,-1251.52112131,0.00016438,2]
[394398352,1763531443806,-151.0,0.00016438,2]
[394398353,1763531443819,-151.0,0.00016438,2]
[394398354,1763531443829,-151.0,0.00016438,2]
[394398355,1763531443838,-151.0,0.00016438,2]
[394398356,1763531443850,-151.0,0.00016438,2]
[394398357,1763531443859,-151.0,0.00016438,2]
[394398358,1763531443868,-152.832044,0.00016438,2]
[394398359,1763531443878,-151.0,0.00016438,2]
[394398360,1763531443889,-151.0,0.00016438,2]
[394398361,1763531443898,-151.0,0.00016438,2]
[394398362,1763531443907,-151.0,0.00016438,2]
[394398363,1763531443916,-151.0,0.00016438,2]
[394398364,1763531443925,-151.0,0.00016438,2]
[394398365,1763531443935,-151.0,0.00016438,2]
[394398366,1763531443944,-151.0,0.00016438,2]
[394398367,1763531443953,-151.0,0.00016438,2]
[394398368,1763531443965,-151.0,0.00016438,2]
[394398369,1763531443974,-202.145556,0.00016438,2]
[394398370,1763531443983,-5020.0,0.00016471,2]
[394398371,1763531443993,-252.0,0.00016472,2]
[394398372,1763531444003,-500.0,0.00016473,2]
[394398373,1763531444012,-302.48982902,0.00016473,2]
[394398374,1763531444021,-500.0,0.00016473,2]
[394398375,1763531444030,-500.0,0.00016473,2]
[394398376,1763531444039,-500.0,0.00016473,2]
[394398377,1763531444048,-158.92081534,0.00016473,2]
[394398379,1763531444057,-500.0,0.00016473,2]
[394398381,1763531444066,-500.0,0.00016473,2]
[394398382,1763531444075,-500.0,0.00016473,2]
[394398383,1763531444085,-500.0,0.00016473,2]
[394398384,1763531444094,-500.0,0.00016473,2]
[394398385,1763531444103,-500.0,0.00016473,2]
[394398386,1763531444112,-500.54156975,0.00016473,2]
[394398387,1763531444121,-500.62162773,0.00016473,2]
[394398388,1763531444130,-370.38011206,0.00016473,2]
[394398389,1763531444139,-501.18009364,0.00016473,2]
[394398390,1763531444147,-505.60972619,0.00016473,2]
[394398391,1763531444156,-500.0,0.00016473,2]
[394398392,1763531444165,-503.70002224,0.00016473,2]
[394398393,1763531444174,-500.0,0.00016473,2]
[394398394,1763531444183,-500.0,0.00016473,2]
[394398395,1763531444192,-501.02696155,0.00016473,2]
[394398396,1763531444201,-500.0,0.00016473,2]
[394398397,1763531444211,-500.0,0.00016473,2]
[394398398,1763531444220,-500.0,0.00016473,2]
[394398399,1763531444229,-500.0,0.00016473,2]
[394398400,1763531444238,-159.64954857,0.00016473,2]
[394398401,1763531444247,-513.57092707,0.00016473,2]
[394398402,1763531444256,-500.0,0.00016473,2]
[394398403,1763531444266,-500.0,0.00016473,2]
[394398404,1763531444275,-500.0,0.00016473,2]
[394398405,1763531444285,-344.72879565,0.00016473,2]
[394398406,1763531444294,-183.10083734,0.00016473,2]
[394398407,1763531444303,-500.0,0.00016473,2]
[394398408,1763531444312,-500.0,0.00016473,2]
[394398409,1763531444321,-500.0,0.00016473,2]
[394398411,1763531444330,-500.37423692,0.00016473,2]
[394398412,1763531444339,-500.0,0.00016473,2]
[394398414,1763531444348,-500.0,0.00016473,2]
[394398416,1763531444357,-504.05832909,0.00016473,2]
[394398418,1763531444367,-500.0,0.00016473,2]
[394398420,1763531444376,-470.80631433,0.00016473,2]
[394398422,1763531444384,-453.81206981,0.00016473,2]
[394398423,1763531444393,-500.0,0.00016473,2]
[394398425,1763531444402,-500.0,0.00016473,2]
[394398427,1763531444411,-501.61884464,0.00016473,2]
[394398429,1763531444420,-500.0,0.00016473,2]
[394398431,1763531444429,-500.0,0.00016473,2]
[394398432,1763531444438,-500.0,0.00016473,2]
[394398434,1763531444447,-500.0,0.00016473,2]
[394398436,1763531444456,-172.55388676,0.00016473,2]
[394398438,1763531444467,-500.0,0.00016473,2]
[394398440,1763531444476,-500.0,0.00016473,2]
[394398442,1763531444485,-500.0,0.00016473,2]
[394398444,1763531444495,-517.6516235,0.00016473,2]
[394398446,1763531444504,-430.05531192,0.00016473,2]
[394398447,1763531444514,-500.0,0.00016473,2]
[394398449,1763531444523,-162.85610517,0.00016473,2]
[394398451,1763531444531,-165.48732767,0.00016473,2]
[394398453,1763531444541,-500.28151942,0.00016473,2]
[394398454,1763531444549,-158.67368353,0.00016473,2]
[394398455,1763531444558,-500.0,0.00016473,2]
[394398456,1763531444567,-500.0,0.00016473,2]
[394398457,1763531444576,-500.0,0.00016473,2]
[394398458,1763531444584,-445.69250355,0.00016473,2]
[394398459,1763531444593,-500.0,0.00016473,2]
[394398460,1763531444602,-501.23064018,0.00016473,2]
[394398461,1763531444611,-500.0,0.00016473,2]
[394398462,1763531444620,-500.0,0.00016473,2]
[394398463,1763531444629,-513.38764164,0.00016473,2]
[394398464,1763531444639,-500.0,0.00016473,2]
[394398465,1763531444648,-500.0,0.00016473,2]
[394398466,1763531444657,-500.0,0.00016473,2]
[394398467,1763531444666,-179.97069143,0.00016473,2]
[394398468,1763531444675,-500.0,0.00016473,2]
[394398469,1763531444684,-500.0,0.00016473,2]
[394398470,1763531444693,-500.0,0.00016473,2]
[394398471,1763531444702,-500.0,0.00016473,2]
[394398472,1763531444714,-500.0,0.00016473,2]
[394398473,1763531444723,-501.65067781,0.00016473,2]
[394398474,1763531444731,-500.70555796,0.00016473,2]
[394398475,1763531444741,-151.0,0.00016473,2]
[394398476,1763531444749,-151.0,0.00016473,2]
[394398477,1763531444758,-151.0,0.00016473,2]
[394398478,1763531444767,-151.0,0.00016493,2]
[394398479,1763531444776,-480.06385227,0.00016521,2]
[394398480,1763531444785,-1002.36654671,0.00016521,2]
[394398481,1763531444795,-914.92008594,0.00016521,2]
[394398482,1763531444805,-1000.0,0.00016521,2]
[394398483,1763531444818,-1000.0,0.00016521,2]
[394398484,1763531444827,-1000.0,0.00016521,2]
[394398485,1763531444836,-1032.65714763,0.00016521,2]
[394398486,1763531444846,-1000.0,0.00016521,2]
[394398487,1763531444855,-1000.0,0.00016521,2]
[394398488,1763531444864,-1000.0,0.00016521,2]
[394398489,1763531444874,-1000.0,0.00016521,2]
[394398490,1763531444883,-1004.69879942,0.00016521,2]
[394398491,1763531444892,-1000.0,0.00016521,2]
[394398492,1763531444901,-1000.0,0.00016521,2]
[394398493,1763531444910,-1000.0,0.00016521,2]
[394398494,1763531444919,-1000.0,0.00016521,2]
[394398495,1763531444928,-1000.0,0.00016521,2]
[394398496,1763531444937,-252.0,0.00016557,2]
[394398497,1763531444946,-1500.0,0.00016568,2]
[394398498,1763531444955,-1500.0,0.00016568,2]
[394398499,1763531444966,-429.59951479,0.00016568,2]
[394398500,1763531444975,-252.0,0.00016623,2]
[394398501,1763531444984,-500.0,0.00016631,2]
[394398502,1763531444993,-159.40504128,0.00016635,2]
[394398503,1763531445002,-158.99891625,0.00016635,2]
[394398504,1763531445011,-500.0,0.00016635,2]
[394398505,1763531445020,-500.70682001,0.00016635,2]
[394398506,1763531445029,-500.0,0.00016643,2]
[394398507,1763531445038,-500.0,0.00016643,2]
[394398508,1763531445046,-435.219433,0.00016644,2]
[394398509,1763531445055,-435.219433,0.00016644,2]
[394398510,1763531445064,-435.219433,0.00016644,2]
[394398511,1763531445073,-435.219433,0.00016644,2]
[394398512,1763531445083,-500.0,0.00016656,2]
[394398513,1763531445092,-252.0,0.00016657,2]
[394398514,1763531445101,-630.0,0.00016667,2]
[394398515,1763531445111,-2151.0,0.00016667,2]
[394398516,1763531445120,-989.0,0.00016667,2]
[394398517,1763531445130,-460.865,0.00016667,2]
[394398518,1763531445139,-414.0,0.00016667,2]
[394398519,1763531445148,-252.0,0.00016677,2]
[394398520,1763531445156,-152.662201,0.0001668,2]
[394398521,1763531445166,-152.662201,0.0001668,2]
[394398522,1763531445175,-152.662201,0.0001668,2]
[394398523,1763531445184,-152.662201,0.0001668,2]
[394398524,1763531445192,-500.0,0.0001668,2]
[394398525,1763531445201,-500.39101686,0.0001668,2]
[394398526,1763531445212,-247.822148,0.000167,2]
[394398527,1763531445224,-247.822148,0.000167,2]
[394398528,1763531445233,-247.822148,0.000167,2]
[394398529,1763531445242,-247.822148,0.000167,2]
[394398530,1763531445251,-5020.0,0.000167,2]
[394398531,1763531445260,-252.0,0.00016704,2]
[394398532,1763531445269,-5020.0,0.00016725,2]
[394398533,1763531445278,-150.0,0.00016747,2]
[394398534,1763531445287,-295.589,0.00016747,2]
[394398535,1763531445295,-150.278,0.00016747,2]
[394398536,1763531445304,-234.035,0.00016747,2]
[394398537,1763531445313,-250.0,0.00016747,2]
[394398538,1763531445322,-150.0,0.00016747,2]
[394398539,1763531445331,-257.749,0.00016747,2]
[394398540,1763531445340,-265.691,0.00016747,2]
[394398541,1763531445349,-252.0,0.00016748,2]
[394398542,1763531445358,-600.0,0.00016766,2]
[394398543,1763531445368,-500.0,0.000168,2]
[394398544,1763531445377,-420.0,0.00016802,2]
[394398545,1763531445386,-252.0,0.00016818,2]
[394398546,1763531445395,-252.0,0.00016843,2]
[394398547,1763531445404,-225.18697532,0.00016864,2]
[394398548,1763531445413,-151.0,0.000169,2]
[394398549,1763531445422,-500.0,0.00016905,2]
[394398550,1763531445431,-395.7021138,0.00016927,2]
[394398551,1763531445439,-395.7021138,0.00016927,2]
[394398552,1763531445448,-290.5525741,0.00016927,2]
[394398553,1763531445457,-395.7021138,0.00016927,2]
[394398554,1763531445469,-395.7021138,0.00016927,2]
[394398555,1763531445478,-395.7021138,0.00016927,2]
[394398556,1763531445487,-344.4699675,0.00016927,2]
[394398557,1763531445495,-45839.12519212,0.00017,2]
[394398558,1763531445504,-151.0,0.00017,2]
[394398559,1763531445514,-151.0,0.00017,2]
[394398560,1763531445524,-151.0,0.00017,2]
[394398561,1763531445533,-160.96145731,0.00017021,2]
[394398562,1763531445542,-503.98429102,0.00017021,2]
[394398563,1763531445552,-1000.0,0.00017021,2]
[394398564,1763531445561,-1000.0,0.00017021,2]
[394398565,1763531445570,-640.23889196,0.00017021,2]
[394398566,1763531445579,-1000.0,0.00017021,2]
[394398567,1763531445587,-1000.0,0.00017021,2]